bitfinex/quotes_BTCUSD_20251226
["timestamp","ask_amount","ask_price","bid_price","bid_amount"]
[1766735507196,0.01128349,88625.0,88609.0,0.01128553]
[1766735507197,0.01128387,88622.0,88610.0,0.07116]
[1766735507420,0.01128362,88624.0,88614.0,0.01128489]
[1766735507624,0.06770119,88625.0,88615.0,0.01128477]
[1766735507625,0.01128349,88625.0,88615.0,0.01128477]
[1766735507818,0.01128337,88626.0,88616.0,0.01128464]
[1766735508072,0.01128324,88627.0,88616.0,0.01128464]
[1766735508568,0.01128337,88626.0,88617.0,0.01128451]
[1766735508772,0.10156727,88628.0,88618.0,0.06770592]
[1766735508773,0.03386805,88628.0,88618.0,0.06770592]
[1766735508919,0.04515116,88628.0,88618.0,0.01128438]
[1766735509759,0.03386805,88628.0,88620.0,0.01128413]
[1766735509917,0.06769945,88627.0,88614.0,0.01128489]
[1766735510117,0.01128362,88624.0,88615.0,0.01128477]
[1766735510325,0.01128337,88626.0,88616.0,0.01128464]
[1766735510561,0.01128324,88627.0,88618.0,0.01128438]
[1766735510864,0.01128324,88627.0,88617.0,0.01128451]
[1766735511221,0.03386805,88628.0,88620.0,0.01128413]
[1766735511623,0.01128324,88627.0,88611.0,0.22570561]
[1766735511830,0.000461,88620.0,88617.0,0.0677069]
[1766735512032,0.03386805,88628.0,88620.0,0.01128413]
[1766735512246,0.03386805,88628.0,88624.0,0.01128362]
[1766735512455,9.747e-05,88630.0,88628.0,8.8e-05]
[1766735512780,9.747e-05,88630.0,88622.0,0.06770282]
[1766735512781,0.03396357,88630.0,88622.0,0.01128387]
[1766735512988,0.03396357,88630.0,88621.0,0.011284]
[1766735513162,0.03396357,88630.0,88623.0,0.01128375]
[1766735513368,0.03396357,88630.0,88624.0,0.01128362]
[1766735513574,9.747e-05,88630.0,88623.0,0.01128375]
[1766735515423,9.747e-05,88630.0,88624.0,0.01128362]
[1766735515733,9.747e-05,88630.0,88621.0,0.011284]
[1766735516152,9.747e-05,88630.0,88622.0,0.01128387]
[1766735516345,9.747e-05,88630.0,88618.0,0.13886586]
[1766735516550,9.747e-05,88630.0,88622.0,0.01128387]
[1766735516770,9.747e-05,88630.0,88623.0,0.01128375]
[1766735517700,9.747e-05,88630.0,88620.0,0.01128413]
[1766735517899,0.000461,88623.0,88618.0,0.07116]
[1766735518373,0.01128362,88624.0,88615.0,0.01128477]
[1766735518545,0.01128362,88624.0,88614.0,0.01128489]
[1766735518761,0.01128349,88625.0,88615.0,0.01128477]
[1766735518913,0.06770021,88627.0,88616.0,0.01128464]
[1766735519119,0.06770021,88627.0,88612.0,0.15019089]
[1766735519120,0.000461,88616.0,88612.0,0.07116]
[1766735519322,0.01128413,88620.0,88612.0,0.01132]
[1766735519546,0.01128413,88620.0,88610.0,0.0226054]
[1766735519750,0.01128413,88620.0,88611.0,0.01128528]
[1766735519957,0.01128413,88620.0,88610.0,0.0112854]
[1766735520111,0.011284,88621.0,88610.0,0.0112854]
[1766735520316,0.011284,88621.0,88612.0,0.01128515]
[1766735520691,0.01128387,88622.0,88613.0,0.01128502]
[1766735521123,0.0112854,88623.0,88614.0,0.01128489]
[1766735521336,0.0112854,88623.0,88613.0,0.01128502]
[1766735521535,0.0112854,88623.0,88614.0,0.01128489]
[1766735521668,0.02256915,88623.0,88613.0,0.01128502]
[1766735521873,0.02256915,88623.0,88613.0,0.0677097]
[1766735522073,0.02256915,88623.0,88609.0,0.08248]
[1766735522074,0.011284,88621.0,88609.0,0.15019283]
[1766735522298,0.01128387,88622.0,88612.0,0.01128515]
[1766735522822,0.01128387,88622.0,88611.0,0.01128528]
[1766735523016,0.01128413,88620.0,88611.0,0.01128528]
[1766735523591,0.01128426,88619.0,88610.0,0.0112854]
[1766735524026,0.01128426,88619.0,88609.0,0.09376553]
[1766735524230,0.01128387,88622.0,88611.0,0.01128528]
[1766735524430,0.011284,88621.0,88612.0,0.01128515]
[1766735524631,0.02256915,88623.0,88613.0,0.01128502]
[1766735525270,0.0112854,88623.0,88613.0,0.0677098]
[1766735525405,0.0112854,88623.0,88614.0,0.01128489]
[1766735525611,0.0111974,88623.0,88616.0,0.01128464]
[1766735526090,0.02248115,88623.0,88614.0,0.08244489]
[1766735526299,0.0111974,88623.0,88615.0,0.01128477]
[1766735526654,0.0111974,88623.0,88616.0,0.01128464]
[1766735526860,0.0111974,88623.0,88617.0,0.01128451]
[1766735527058,0.0111974,88623.0,88615.0,0.01128477]
[1766735528041,0.0111974,88623.0,88616.0,0.01128464]
[1766735528338,0.0111974,88623.0,88615.0,0.01128477]
[1766735528628,0.01132,88623.0,88616.0,0.01128464]
[1766735528807,0.01132,88623.0,88615.0,0.06770816]
[1766735528999,0.01132,88623.0,88616.0,0.01128464]
[1766735529205,0.01132,88623.0,88615.0,0.01128477]
[1766735529667,0.01132,88623.0,88614.0,0.08244489]
[1766735529858,0.01132,88623.0,88615.0,0.01128477]
[1766735530201,0.01132,88623.0,88616.0,0.01128464]
[1766735530379,0.01132,88623.0,88615.0,0.08244477]
[1766735530580,0.01128349,88625.0,88616.0,0.01128464]
[1766735530784,0.01132,88624.0,88617.0,0.01128451]
[1766735531427,0.01132,88624.0,88615.0,0.08244477]
[1766735531630,0.02260362,88624.0,88615.0,0.08244477]
[1766735532722,0.01132,88624.0,88616.0,0.01128464]
[1766735532903,0.02260362,88624.0,88615.0,0.08244477]
[1766735533065,0.02260362,88624.0,88615.0,0.07116]
[1766735533266,0.07902223,88624.0,88615.0,0.07116]
[1766735533468,0.02260362,88624.0,88615.0,0.07116]
[1766735533666,0.01128375,88623.0,88615.0,0.07116]
[1766735534168,0.02260362,88624.0,88615.0,0.08244477]
[1766735534367,0.01128375,88623.0,88615.0,0.07116]
[1766735534567,0.01132,88624.0,88615.0,0.08244477]
[1766735534769,0.01128375,88623.0,88615.0,0.07116]
[1766735534966,0.01132,88624.0,88615.0,0.08244477]
[1766735535172,0.02260362,88624.0,88615.0,0.08244477]
[1766735535578,0.02260362,88624.0,88615.0,0.07116]
[1766735535773,0.01128375,88623.0,88615.0,0.07116]
[1766735536203,0.02260362,88624.0,88615.0,0.07116]
[1766735536445,0.01128375,88623.0,88615.0,0.07116]
[1766735536749,0.02260362,88624.0,88615.0,0.07116]
[1766735536953,0.01128375,88623.0,88615.0,0.07116]
[1766735537158,0.01132,88624.0,88615.0,0.08244477]
[1766735537400,0.01128375,88623.0,88615.0,0.07116]
[1766735537599,0.01132,88624.0,88615.0,0.07116]
[1766735537797,0.02260362,88624.0,88615.0,0.07116]
[1766735538034,0.01132,88624.0,88615.0,0.07116]
[1766735538216,0.02260362,88624.0,88615.0,0.07116]
[1766735538392,0.01128375,88623.0,88615.0,0.07116]
[1766735538574,0.02260362,88624.0,88615.0,0.07116]
[1766735538769,0.01132,88624.0,88616.0,0.01128464]
[1766735538975,0.01132,88624.0,88615.0,0.08244477]
[1766735539187,0.02260362,88624.0,88615.0,0.08244477]
[1766735539501,0.02260362,88624.0,88615.0,0.07116]
[1766735539702,0.01128349,88625.0,88615.0,0.08555477]
[1766735539902,0.01128349,88625.0,88617.0,0.07427]
[1766735540841,0.01128362,88624.0,88617.0,0.07427]
[1766735540993,0.01128375,88623.0,88617.0,0.07427]
[1766735541203,0.01128387,88622.0,88617.0,0.07427]
[1766735541579,0.01128375,88623.0,88617.0,0.07427]
[1766735541780,0.01128324,88627.0,88623.0,0.00055]
[1766735541980,0.0564179,88625.0,88623.0,0.00055]
[1766735542184,0.01128362,88624.0,88617.0,0.07427]
[1766735542638,0.01128349,88625.0,88617.0,0.07427]
[1766735542844,0.01128362,88624.0,88613.0,0.06770974]
[1766735543150,0.01128349,88625.0,88616.0,0.01128464]
[1766735543357,0.01128337,88626.0,88616.0,0.08555464]
[1766735543605,0.01128362,88624.0,88616.0,0.07427]
[1766735543985,0.01128337,88626.0,88616.0,0.08555464]
[1766735544194,0.01128362,88624.0,88616.0,0.07427]
[1766735544408,0.01128337,88626.0,88616.0,0.08555464]
[1766735544854,0.01128362,88624.0,88616.0,0.07427]
[1766735545370,0.01128362,88624.0,88616.0,0.08555464]
[1766735545596,0.01128349,88625.0,88616.0,0.08555464]
[1766735546006,0.01128362,88624.0,88616.0,0.07427]
[1766735546257,0.01128375,88623.0,88616.0,0.07427]
[1766735546470,0.01128362,88624.0,88616.0,0.07427]
[1766735546618,0.01128375,88623.0,88616.0,0.07427]
[1766735546818,0.01128362,88624.0,88616.0,0.07427]
[1766735546991,0.01128375,88623.0,88616.0,0.07427]
[1766735547194,0.01128349,88625.0,88616.0,0.07427]
[1766735547749,0.06769955,88627.0,88617.0,0.07427]
[1766735547951,0.01128337,88626.0,88617.0,0.08555451]
[1766735548154,0.01128349,88625.0,88617.0,0.07427]
[1766735548912,0.01128337,88626.0,88617.0,0.08555451]
[1766735549138,0.01128349,88625.0,88617.0,0.07427]
[1766735549515,0.01128324,88627.0,88617.0,0.08555451]
[1766735549715,0.01128337,88626.0,88617.0,0.08555451]
[1766735550158,0.01128349,88625.0,88617.0,0.07427]
[1766735550387,0.01128337,88626.0,88617.0,0.07427]
[1766735550565,0.01128362,88624.0,88617.0,0.07427]
[1766735550783,0.01128349,88625.0,88617.0,0.07427]
[1766735551205,0.01128362,88624.0,88617.0,0.07427]
[1766735551403,0.011284,88621.0,88617.0,0.07427]
[1766735551719,0.01128413,88620.0,88617.0,0.07427]
[1766735551934,0.011284,88621.0,88617.0,0.073721]
[1766735552127,0.01128387,88622.0,88612.0,0.08555515]
[1766735552912,0.01128387,88622.0,88613.0,0.01128502]
[1766735553076,0.011284,88621.0,88613.0,0.01128502]
[1766735553276,0.01128413,88620.0,88611.0,0.01132]
[1766735553473,0.01128413,88620.0,88611.0,0.02260528]
[1766735553715,0.01128387,88622.0,88611.0,0.02260528]
[1766735553926,0.01128413,88620.0,88612.0,0.01128515]
[1766735554125,0.01128464,88616.0,88606.0,0.0002457]
[1766735554282,0.06770787,88616.0,88607.0,0.01132]
[1766735554487,0.01128464,88616.0,88607.0,0.02260579]
[1766735554688,0.01128451,88617.0,88607.0,0.02260579]
[1766735554912,0.01128451,88617.0,88608.0,0.01128566]
[1766735555166,0.01128489,88614.0,88606.0,0.0002457]
[1766735555363,0.01128464,88616.0,88606.0,0.0002457]
[1766735555364,0.01128464,88616.0,88606.0,0.01153161]
[1766735555562,0.01128477,88615.0,88607.0,0.01132]
[1766735555760,0.01128438,88618.0,88607.0,0.01132]
[1766735555940,0.01132,88621.0,88611.0,0.07427]
[1766735556138,0.01132,88621.0,88618.0,0.000549]
[1766735556359,0.01128375,88623.0,88613.0,0.07427]
[1766735556558,0.01128438,88618.0,88613.0,0.07427]
[1766735556771,0.01128464,88616.0,88613.0,0.07427]
[1766735557107,0.01128438,88618.0,88616.0,0.000549]
[1766735557477,0.01128464,88616.0,88613.0,0.07427]
[1766735557689,0.01128451,88617.0,88613.0,0.07427]
[1766735558286,0.01128438,88618.0,88617.0,0.000549]
[1766735558683,0.01128464,88616.0,88613.0,0.07427]
[1766735558887,0.01128451,88617.0,88616.0,0.00055]
[1766735559289,0.01128438,88618.0,88613.0,0.07427]
[1766735560306,0.01128451,88617.0,88613.0,0.07427]
[1766735560514,0.01128438,88618.0,88613.0,0.07427]
[1766735560668,0.01128451,88617.0,88613.0,0.07427]
[1766735560872,0.01128438,88618.0,88613.0,0.07427]
[1766735561530,0.01128451,88617.0,88613.0,0.07427]
[1766735561908,0.06770596,88619.0,88613.0,0.07427]
[1766735562112,0.01128438,88618.0,88613.0,0.07427]
[1766735562483,0.01128451,88617.0,88613.0,0.07427]
[1766735562696,0.01128438,88618.0,88613.0,0.07427]
[1766735563132,0.01128451,88617.0,88613.0,0.07427]
[1766735563477,0.01128464,88616.0,88613.0,0.07427]
[1766735563679,0.01128451,88617.0,88613.0,0.07427]
[1766735564079,0.000549,88613.0,88609.0,0.01132]
[1766735564396,0.01128477,88615.0,88609.0,0.01132]
[1766735564590,0.01128464,88616.0,88609.0,0.01132]
[1766735564810,0.01128451,88617.0,88610.0,0.07133]
[1766735565258,0.01128464,88616.0,88610.0,0.07133]
[1766735565633,0.0225689,88620.0,88616.0,0.00055]
[1766735565833,0.01128426,88619.0,88616.0,0.00055]
[1766735566019,0.01128451,88617.0,88610.0,0.07133]
[1766735566865,0.01128426,88619.0,88610.0,0.0826154]
[1766735567214,0.0225689,88620.0,88610.0,0.0826154]
[1766735567430,0.0225689,88620.0,88611.0,0.08261528]
[1766735567431,0.01128477,88620.0,88611.0,0.08261528]
[1766735567774,0.011284,88621.0,88610.0,0.07133]
[1766735567929,0.011284,88621.0,88611.0,0.01128528]
[1766735568135,0.01128426,88619.0,88612.0,0.07133]
[1766735568577,0.01128413,88620.0,88612.0,0.07133]
[1766735568791,0.01128438,88618.0,88612.0,0.07133]
[1766735568978,0.01128413,88620.0,88612.0,0.07133]
[1766735569172,0.01128426,88619.0,88612.0,0.07133]
[1766735569383,0.01128438,88618.0,88612.0,0.07133]
[1766735569553,0.01128413,88620.0,88612.0,0.07133]
[1766735570091,0.01128438,88618.0,88612.0,0.07133]
[1766735570289,0.06770522,88620.0,88612.0,0.07133]
[1766735570524,0.01128426,88619.0,88612.0,0.07133]
[1766735571060,0.01128438,88618.0,88612.0,0.07133]
[1766735571262,0.01128426,88619.0,88612.0,0.07133]
[1766735571458,0.01128438,88618.0,88612.0,0.07133]
[1766735571660,0.01128426,88619.0,88612.0,0.07133]
[1766735572070,0.00919337,88618.0,88612.0,0.07133]
[1766735572275,0.01128426,88619.0,88612.0,0.07133]
[1766735572491,0.01128413,88620.0,88612.0,0.07133]
[1766735572899,0.01128426,88619.0,88612.0,0.07133]
[1766735573383,0.06770599,88619.0,88612.0,0.07133]
[1766735573585,0.01128438,88618.0,88612.0,0.07133]
[1766735573937,0.06770539,88620.0,88612.0,0.07133]
[1766735574145,0.01128438,88618.0,88612.0,0.07133]
[1766735574310,0.01128451,88617.0,88612.0,0.07133]
[1766735574512,0.01128438,88618.0,88612.0,0.07133]
[1766735574707,0.01128451,88617.0,88612.0,0.07133]
[1766735574912,0.01128438,88618.0,88612.0,0.07133]
[1766735575134,0.01128464,88616.0,88612.0,0.07133]
[1766735575334,0.05641997,88622.0,88612.0,0.07133]
[1766735575555,0.01128426,88619.0,88612.0,0.07133]
[1766735576329,0.01128438,88618.0,88612.0,0.07133]
[1766735576542,0.01128426,88619.0,88612.0,0.07133]
[1766735576745,0.01128451,88617.0,88612.0,0.070781]
[1766735576946,0.06770609,88619.0,88612.0,0.070781]
[1766735577303,0.01128451,88617.0,88612.0,0.070781]
[1766735577996,0.01128438,88618.0,88612.0,0.070781]
[1766735578172,0.01128451,88617.0,88612.0,0.070781]
[1766735578355,0.01128438,88618.0,88612.0,0.070781]
[1766735578891,0.01128451,88617.0,88612.0,0.070781]
[1766735579094,0.01128438,88618.0,88612.0,0.070781]
[1766735579302,0.01128451,88617.0,88612.0,0.070781]
[1766735579456,0.01128464,88616.0,88613.0,0.01132]
[1766735579664,0.01128451,88617.0,88613.0,0.01132]
[1766735580424,0.01128438,88618.0,88613.0,0.01132]
[1766735580624,0.01128451,88617.0,88613.0,0.01132]
[1766735580827,0.01128438,88618.0,88613.0,0.01132]
[1766735581027,0.06770609,88619.0,88613.0,0.01132]
[1766735581181,0.01128451,88617.0,88613.0,0.01132]
[1766735581603,0.06770609,88619.0,88613.0,0.01132]
[1766735581793,0.01128438,88618.0,88613.0,0.01132]
[1766735582243,0.00055,88613.0,88612.0,0.00381536]
[1766735582805,0.01128489,88614.0,88611.0,0.01132]
[1766735582936,0.01128477,88615.0,88611.0,0.01132]
[1766735583143,0.01128451,88617.0,88607.0,0.01128579]
[1766735583345,0.01128477,88615.0,88609.0,0.01132]
[1766735583729,0.01128464,88616.0,88609.0,0.01132]
[1766735584324,0.01128464,88616.0,88606.0,0.0002457]
[1766735584527,0.225676,88623.0,88606.0,0.01132]
[1766735584528,0.00055,88609.0,88606.0,0.01132]
[1766735584700,0.01183553,88609.0,88606.0,0.01132]
[1766735584900,0.0112854,88610.0,88606.0,0.01132]
[1766735585107,0.01128553,88609.0,88606.0,0.01132]
[1766735585318,0.01128591,88606.0,88600.0,0.0025]
[1766735585517,0.01128629,88603.0,88600.0,0.00195]
[1766735585941,0.01128744,88605.0,88601.0,0.07133]
[1766735586316,0.01128579,88607.0,88601.0,0.07133]
[1766735586722,0.01128591,88606.0,88601.0,0.07133]
[1766735586923,0.01128604,88605.0,88601.0,0.07133]
[1766735587264,0.01128591,88606.0,88601.0,0.07133]
[1766735587474,0.01128617,88604.0,88601.0,0.07133]
[1766735587587,0.01128629,88603.0,88600.0,0.00195]
[1766735587807,0.01128617,88604.0,88600.0,0.00195]
[1766735588012,0.01128629,88603.0,88600.0,0.00195]
[1766735588218,0.0113548,88607.0,88600.0,0.00195]
[1766735588500,0.01128591,88606.0,88600.0,0.00195]
[1766735588830,0.01128617,88604.0,88600.0,0.00195]
[1766735589031,0.0677157,88606.0,88600.0,0.00195]
[1766735589232,0.01128629,88603.0,88600.0,0.00195]
[1766735589436,0.01128629,88603.0,88600.0,1e-08]
[1766735590043,0.05643213,88602.0,88600.0,1e-08]
[1766735590431,0.01128629,88603.0,88600.0,1e-08]
[1766735590630,0.06771778,88603.0,88600.0,1e-08]
[1766735590853,0.01128629,88603.0,88600.0,1e-08]
[1766735591447,0.01128617,88604.0,88600.0,1e-08]
[1766735591650,0.01128629,88603.0,88600.0,1e-08]
[1766735591876,0.01128617,88604.0,88600.0,1e-08]
[1766735592290,0.01128629,88603.0,88600.0,1e-08]
[1766735592488,0.01128617,88604.0,88600.0,1e-08]
[1766735592913,0.01128629,88603.0,88600.0,1e-08]
[1766735593314,0.06771708,88604.0,88600.0,1e-08]
[1766735593510,0.01128629,88603.0,88600.0,1e-08]
[1766735595017,0.06771839,88603.0,88600.0,1e-08]
[1766735595187,0.05643261,88602.0,88600.0,1e-08]
[1766735595424,0.01128629,88603.0,88600.0,1e-08]
[1766735596218,0.06771818,88603.0,88600.0,1e-08]
[1766735596444,0.05643277,88601.0,88600.0,1e-08]
[1766735596647,0.01128668,88600.0,88592.0,0.00566574]
[1766735596838,0.01128642,88602.0,88592.0,0.00566574]
[1766735597014,0.01128655,88601.0,88592.0,0.00566574]
[1766735597221,0.01128642,88602.0,88592.0,0.00566574]
[1766735597403,0.01128655,88601.0,88593.0,0.01128757]
[1766735597600,0.01128642,88602.0,88594.0,0.01128744]
[1766735598016,0.01128642,88602.0,88593.0,0.01128757]
[1766735598267,0.01128655,88601.0,88592.0,0.00566574]
[1766735598767,0.01128668,88600.0,88592.0,0.00566574]
[1766735599008,0.01128668,88600.0,88591.0,0.02260782]
[1766735599228,0.01128655,88601.0,88591.0,0.02260782]
[1766735599393,0.01128668,88600.0,88591.0,0.02260782]
[1766735599800,0.0112868,88599.0,88591.0,0.01132]
[1766735599964,0.01128668,88600.0,88591.0,0.02260782]
[1766735600167,0.0112868,88599.0,88591.0,0.00532]
[1766735600386,0.01128693,88598.0,88591.0,0.00532]
[1766735600585,0.06772237,88597.0,88583.0,0.01128884]
[1766735600769,0.06772237,88597.0,88587.0,0.01128833]
[1766735600770,0.01128719,88596.0,88587.0,0.01128833]
[1766735600971,0.0112877,88592.0,88586.0,0.01132]
[1766735601214,0.01128744,88594.0,88586.0,0.01132]
[1766735601534,0.01128719,88596.0,88586.0,0.01132]
[1766735601711,0.01128731,88595.0,88586.0,0.01132]
[1766735601913,0.05643404,88599.0,88595.0,0.001099]
[1766735602112,0.0112868,88599.0,88590.0,0.01128795]
[1766735602713,0.01132,88600.0,88590.0,0.01128795]
[1766735602894,0.0112868,88599.0,88590.0,0.01128795]
[1766735603300,0.01132,88600.0,88592.0,0.0112877]
[1766735603500,0.01132,88600.0,88591.0,0.01128782]
[1766735603852,0.01132,88600.0,88592.0,0.0112877]
[1766735604053,0.02260668,88600.0,88591.0,0.01128782]
[1766735604266,0.01132,88600.0,88592.0,0.0112877]
[1766735604421,0.02260668,88600.0,88592.0,0.0112877]
[1766735604626,0.02260668,88600.0,88590.0,0.06772736]
[1766735604948,0.02260668,88600.0,88592.0,0.0112877]
[1766735605247,0.02260668,88600.0,88591.0,0.01128782]
[1766735605654,0.010771,88600.0,88591.0,0.01128782]
[1766735605858,0.01132,88602.0,88595.0,0.01128731]
[1766735606155,0.01132,88602.0,88596.0,0.07279]
[1766735606531,0.01128655,88601.0,88596.0,0.07279]
[1766735606771,0.01132,88602.0,88596.0,0.07279]
[1766735606962,0.02260642,88602.0,88596.0,0.07279]
[1766735607122,0.01132,88602.0,88596.0,0.07279]
[1766735607324,0.01128629,88603.0,88596.0,0.07279]
[1766735607565,0.01128642,88602.0,88596.0,0.07279]
[1766735608152,0.06771709,88604.0,88596.0,0.07279]
[1766735609151,0.01128642,88602.0,88596.0,0.07279]
[1766735609578,0.05643086,88604.0,88596.0,0.07279]
[1766735609887,0.01128629,88603.0,88596.0,0.07279]
[1766735610116,0.01128642,88602.0,88596.0,0.07279]
[1766735610250,0.01128655,88601.0,88596.0,0.07279]
[1766735610868,0.01128642,88602.0,88596.0,0.07279]
[1766735611858,0.01128629,88603.0,88596.0,0.07279]
[1766735612274,0.01128655,88601.0,88593.0,0.02260757]
[1766735612637,0.01128629,88603.0,88593.0,0.02260757]
[1766735612838,0.01128655,88601.0,88593.0,0.01132]
[1766735613053,0.01128629,88603.0,88593.0,0.02260757]
[1766735613339,0.01128642,88602.0,88593.0,0.02260757]
[1766735613549,0.01128629,88603.0,88594.0,0.01128744]
[1766735613737,0.01128604,88605.0,88594.0,0.07279]
[1766735613942,0.01128629,88603.0,88594.0,0.07279]
[1766735614157,0.01128629,88603.0,88594.0,0.08407744]
[1766735614355,0.01128629,88603.0,88595.0,0.01128731]
[1766735614493,0.01128617,88604.0,88595.0,0.01128731]
[1766735614847,0.01128642,88602.0,88594.0,0.07279]
[1766735615163,0.03387581,88606.0,88593.0,0.02260757]
[1766735615164,0.01128502,88613.0,88597.0,0.07279]
[1766735615453,0.06025215,88630.0,88593.0,0.01132]
[1766735615454,0.01128566,88608.0,88603.0,0.07279]
[1766735615637,0.01128566,88608.0,88603.0,0.08411]
[1766735615954,0.0113548,88607.0,88603.0,0.08411]
[1766735616175,0.01128591,88606.0,88603.0,0.08411]
[1766735616454,0.0113548,88607.0,88603.0,0.08411]
[1766735616594,0.05643022,88605.0,88603.0,0.06869906]
[1766735616799,0.01128629,88603.0,88594.0,0.01128744]
[1766735616996,0.01128629,88603.0,88596.0,0.07279]
[1766735617221,0.01128642,88602.0,88596.0,0.07279]
[1766735617620,0.01128655,88601.0,88596.0,0.07279]
[1766735617826,0.01128642,88602.0,88596.0,0.07279]
[1766735618069,0.01128629,88603.0,88596.0,0.07279]
[1766735618245,0.01128617,88604.0,88596.0,0.07279]
[1766735618778,0.01128642,88602.0,88597.0,0.01132]
[1766735618997,0.01128629,88603.0,88597.0,0.01132]
[1766735619419,0.01128629,88603.0,88596.0,0.07279]
[1766735619420,0.01128655,88601.0,88596.0,0.07279]
[1766735619630,0.01128629,88603.0,88598.0,0.01132]
[1766735619966,0.01128655,88601.0,88598.0,0.00932]
[1766735620166,0.01128629,88603.0,88598.0,0.00932]
[1766735620504,0.01128642,88602.0,88593.0,0.01132]
[1766735620707,0.01128668,88600.0,88593.0,0.01132]
[1766735621089,0.01128655,88601.0,88593.0,0.02260757]
[1766735621276,0.01128655,88601.0,88593.0,0.01132]
[1766735621787,0.01128655,88601.0,88593.0,0.02260757]
[1766735622009,0.01128642,88602.0,88593.0,0.01132]
[1766735622373,0.01128642,88602.0,88593.0,0.02260757]
[1766735622999,0.01128629,88603.0,88593.0,0.02260757]
[1766735623385,0.01128655,88601.0,88593.0,0.01132]
[1766735623750,0.06771987,88601.0,88593.0,0.01132]
[1766735623886,0.01128668,88600.0,88593.0,0.01132]
[1766735624629,0.01128655,88601.0,88593.0,0.01132]
[1766735624772,0.01128668,88600.0,88593.0,0.01132]
[1766735625166,0.01128655,88601.0,88593.0,0.01132]
[1766735625874,0.01128642,88602.0,88593.0,0.01132]
[1766735626064,0.01128642,88602.0,88593.0,0.02260757]
[1766735626250,0.01128655,88601.0,88593.0,0.01132]
[1766735627316,0.05643101,88604.0,88595.0,0.07049]
[1766735627450,0.05643101,88604.0,88601.0,0.000549]
[1766735627646,0.01128629,88603.0,88600.0,0.07049]
[1766735628144,0.05643213,88602.0,88600.0,0.07049]
[1766735628373,0.05643213,88602.0,88600.0,0.06994]
[1766735628734,0.06771813,88603.0,88600.0,0.06994]
[1766735628936,0.05558264,88604.0,88600.0,0.05865345]
[1766735629225,0.01128617,88604.0,88593.0,0.01132]
[1766735629361,0.05643317,88601.0,88593.0,0.01132]
[1766735629561,0.01128617,88604.0,88593.0,0.01132]
[1766735629562,0.0564319,88603.0,88593.0,0.01132]
[1766735629766,0.01128655,88601.0,88593.0,0.01132]
[1766735630135,0.01128668,88600.0,88593.0,0.01132]
[1766735630262,0.0112868,88599.0,88593.0,0.01132]
[1766735630465,0.01128668,88600.0,88593.0,0.01132]
[1766735630647,0.0112868,88599.0,88593.0,0.01132]
[1766735630868,0.01128668,88600.0,88593.0,0.01132]
[1766735631145,0.06772059,88600.0,88592.0,0.07049]
[1766735631546,0.01128668,88600.0,88592.0,0.07049]
[1766735632307,0.0112868,88599.0,88592.0,0.07049]
[1766735632504,0.01128668,88600.0,88592.0,0.07049]
[1766735632850,0.0112868,88599.0,88592.0,0.07049]
[1766735633403,0.01128693,88598.0,88591.0,0.01132]
[1766735634108,0.01128706,88597.0,88591.0,0.01132]
[1766735634933,0.01128719,88596.0,88591.0,0.01132]
[1766735635150,0.01128731,88595.0,88591.0,0.01132]
[1766735635552,0.01128719,88596.0,88590.0,0.00024577]
[1766735635758,0.05643334,88601.0,88590.0,0.00024577]
[1766735636009,0.01128693,88598.0,88590.0,0.00024577]
[1766735636143,0.01128642,88602.0,88598.0,0.000549]
[1766735636485,0.01128642,88602.0,88590.0,0.00024577]
[1766735636486,0.01128706,88597.0,88590.0,0.00024577]
[1766735636685,0.01128719,88596.0,88590.0,0.00024577]
[1766735636896,0.01128706,88597.0,88590.0,0.00024577]
[1766735637120,0.01128693,88598.0,88590.0,0.00024577]
[1766735638586,0.06772084,88599.0,88590.0,0.01153372]
[1766735638780,0.01128693,88598.0,88590.0,0.00024577]
[1766735639183,0.01128706,88597.0,88590.0,0.00024577]
[1766735639389,0.01128693,88598.0,88597.0,0.000549]
[1766735639570,0.01128693,88598.0,88590.0,0.00024577]
[1766735640278,0.01128706,88597.0,88590.0,0.00024577]
[1766735640524,0.01128719,88596.0,88590.0,0.00024577]
[1766735640706,0.05643264,88602.0,88597.0,0.000549]
[1766735640707,0.01128642,88602.0,88597.0,0.000549]
[1766735641087,0.01128668,88600.0,88596.0,0.07049]
[1766735641287,0.0112868,88599.0,88596.0,0.07049]
[1766735641510,0.0112868,88599.0,88591.0,0.01128782]
[1766735641729,0.0112868,88599.0,88590.0,0.48600767]
[1766735641924,0.01128668,88600.0,88590.0,0.48600767]
[1766735642174,0.01128668,88600.0,88590.0,0.47471972]
[1766735642175,0.0112868,88599.0,88590.0,0.47471972]
[1766735642314,0.01128655,88601.0,88591.0,0.07049]
[1766735642518,0.01128629,88603.0,88591.0,0.07049]
[1766735642915,0.01128629,88603.0,88592.0,0.0677262]
[1766735643123,0.01128617,88604.0,88594.0,0.01128744]
[1766735644496,0.01128617,88604.0,88595.0,0.01128731]
[1766735644703,0.06775049,88605.0,88595.0,0.01128731]
[1766735644910,0.01128617,88604.0,88594.0,0.08177744]
[1766735645112,0.01128617,88604.0,88595.0,0.01128731]
[1766735645314,0.01128617,88604.0,88596.0,0.01128719]
[1766735645813,0.01132,88605.0,88604.0,0.000549]
[1766735646416,0.01128617,88604.0,88594.0,0.07049]
[1766735646618,0.01128617,88604.0,88595.0,0.01128731]
[1766735646824,0.06771756,88604.0,88594.0,0.08177744]
[1766735647179,0.01128617,88604.0,88595.0,0.01128731]
[1766735647402,0.01128629,88603.0,88594.0,0.07049]
[1766735647580,0.01128617,88604.0,88596.0,0.01128719]
[1766735647786,0.02260604,88605.0,88596.0,0.01128719]
[1766735648205,0.01128617,88604.0,88595.0,0.08177731]
[1766735648804,0.01128629,88603.0,88595.0,0.07049]
[1766735649950,0.01128617,88604.0,88595.0,0.08177731]
[1766735650179,0.01128617,88604.0,88595.0,0.07049]
[1766735650380,0.01128617,88604.0,88595.0,0.08177731]
[1766735650779,0.01128617,88604.0,88596.0,0.01128719]
[1766735650918,0.02260604,88605.0,88596.0,0.01128719]
[1766735651131,0.02260604,88605.0,88595.0,0.08177731]
[1766735651132,0.01128617,88604.0,88595.0,0.08177731]
[1766735651527,0.01128629,88603.0,88595.0,0.07049]
[1766735652382,0.01128642,88602.0,88595.0,0.07049]
[1766735652739,0.01128629,88603.0,88595.0,0.07049]
[1766735653143,0.01128642,88602.0,88595.0,0.07049]
[1766735653419,0.01128629,88603.0,88595.0,0.07049]
[1766735654053,0.01128642,88602.0,88595.0,0.07049]
[1766735654445,0.01128655,88601.0,88595.0,0.07049]
[1766735654994,0.01128642,88602.0,88591.0,0.01128782]
[1766735655153,0.01128629,88603.0,88594.0,0.01128744]